Cogmind - Beta 15 X1 @@@ ROGUE MODE // 2024.11.17 @ 22:06:17 Player: Jezoensis Result: Destroyed by as-56011 with Assembled Rifle Performance ------------- Evolutions (0) 0 Regions Visited (2) 400 Robots Destroyed (10) 50 Value Destroyed (150) 150 Prototype IDs (0) 0 Alien Tech Used (0) 0 Bonus (0) 0 TOTAL SCORE: 600 Bonus ------- None Cogmind --------- Core Integrity 0/250 Matter 280/300 Energy 99/100 System Corruption 0% Temperature Cool (0) Movement Core (50) Location -10/Mines Parts ------- > --- POWER (1) -------- (None) > --- PROPULSION (2) --- (None) > --- UTILITY (2) ------ (None) > --- WEAPON (2) ------- (None) > --- INVENTORY (5) ---- High-capacity Matter Pod (200) High-capacity Matter Pod (200) Seismic Detector Mining Laser Peak State ------------ > --- POWER ------------ Light Ion Engine > --- PROPULSION ------- Wheel Wheel > --- UTILITY ---------- Small Storage Unit Improved Terrain Scanner > --- WEAPON ----------- Medium Laser Small Laser > --- INVENTORY -------- Light Ion Engine Light Treads Light Treads Aluminum Leg Compact Wheel EM Pulse Gun [Rating: 9] Favorites ----------- Power Light Ion Engine Engine Light Ion Engine Propulsion Wheel Treads Light Treads Wheel Wheel Utility Small Storage Unit Device Improved Terrain Scanner Storage Small Storage Unit Weapon Medium Laser Energy Gun Medium Laser Ballistic Gun Light Assault Rifle Launcher Grenade Launcher Build | -11 -10 -10 ------- Run | Yrd Mat Min Slots Evolved . | . . . Power . | . . . Propulsion . | . . . Utility . | . . . Weapon . | . . . Parts Attached 16 | 8 2 6 Power 2 | 1 . 1 Engine 2 | 1 . 1 Core . | . . . Reactor . | . . . Propulsion 5 | 3 1 1 Treads 1 | . 1 . Leg . | . . . Wheel 4 | 3 . 1 Hover . | . . . Flight . | . . . Utility 4 | 2 . 2 Device 3 | 1 . 2 Storage 1 | 1 . . Processor . | . . . Hackware . | . . . Protection . | . . . Artifact . | . . . Weapon 5 | 2 1 2 Energy Gun 3 | 2 1 . Energy Cannon . | . . . Ballistic Gun 1 | . . 1 Ballistic Cannon . | . . . Launcher 1 | . . 1 Special Weapon . | . . . Impact Weapon . | . . . Slashing Weapon . | . . . Piercing Weapon . | . . . Special Melee Weapon . | . . . Unidentified Prototypes . | . . . Parts Lost 9 | . . 9 Power 1 | . . 1 Propulsion 5 | . . 5 Utility 1 | . . 1 Weapon 2 | . . 2 Highest Loss Streak 7 | . . 7 To Critical Strikes . | . . . Average Backups 6 | 4 7 6 Power . | . 1 . Propulsion 1 | 2 2 . Utility 1 | . 1 2 Weapon 2 | . 3 2 Tool/Special . | . . . Unused Backups 7 | . 3 4 Power 1 | . . 1 Propulsion 2 | . 2 . Utility 2 | . . 2 Weapon 2 | . 1 1 Tool/Special . | . . . Average Slot Usage (%) 86 | . 100 70 Engine 10 | . 14 7 Treads 1 | . . 1 Wheel 23 | . 27 20 Device 12 | . 14 10 Storage 12 | . 14 11 Energy Gun 21 | . 28 13 Ballistic Gun 1 | . . 2 Launcher 1 | . . 2 Peak Build Rating 9 | 9 9 9 Average Rating 7 | 5 9 5 On Entrance 6 | . 9 9 Naked Turns 76 | . . 76 Heaviest Build 13 | 12 13 13 Greatest Support 32 | 26 20 32 Greatest Overweight (x) 1 | . 1 1 Average Overweight (x) . | . . . Largest Inventory Capacity 8 | 8 8 8 Average Capacity 7 | 7 8 7 Most Carried 8 | 8 8 8 Average Carried 6 | 4 7 6 Final Capacity 8 | 8 8 5 Final Carried 8 | 8 8 4 Class Distribution -------------------- 100% | Mutant Dominant Class ---------------- Mutant | -10/Materials Mutant | -10/Mines Resources | -11 -10 -10 ----------- Run | Yrd Mat Min Matter Collected 375 | 255 55 65 Remotely . | . . . Salvage Created 239 | 41 116 82 Parts 21 | 10 10 1 Haulers Intercepted 1 | . 1 . Recyclers Shooed 1 | . 1 . Parts Field Recycled . | . . . Retrieved Matter . | . . . Parts Self-Destructed . | . . . Prevented . | . . . Kills | -11 -10 -10 ------- Run | Yrd Mat Min Combat Hostiles Destroyed 5 | . 3 2 Guns 5 | . 3 2 Classes Destroyed 5 | 1 3 1 Tunneler 3 | 3 . . Hauler 1 | . 1 . Watcher 1 | . 1 . Swarmer 3 | . 3 . Grunt 2 | . . 2 Best Kill Streak 3 | 3 3 2 Combat Bots Only 3 | . 3 2 Max Kills in Single Turn 1 | 1 1 1 Gunslinging . | . . . Exploded . | . . . Melee . | . . . Uniques/NPCs Destroyed . | . . . Combat | -11 -10 -10 -------- Run | Yrd Mat Min Hostile Shots Fired 35 | . 8 27 Missed 4 | . 1 3 Damage Taken 818 | . 50 768 Core 262 | . 15 247 Absorbed by Shields . | . . . Core Remaining (%) 100 | 100 . . Volleys Fired 21 | 3 12 6 Largest 2 | 2 2 2 Hottest 100 | 90 100 100 Shots Fired 42 | 6 24 12 Gun 42 | 6 24 12 Cannon . | . . . Launcher . | . . . Special . | . . . Kinetic . | . . . Thermal 42 | 6 24 12 Explosive . | . . . Electromagnetic . | . . . Robot Hit Streak 6 | 4 6 6 Robot Miss Streak 2 | . 2 2 Penetration Max . | . . . Secondary Targets . | . . . Shots Hit Robots 28 | 4 15 9 Core Hits 15 | 3 7 5 Critical Kills . | . . . Critical Parts Destroyed . | . . . Critical Strikes 2 | . 2 . Burn 2 | . 2 . Melee Attacks . | . . . Impact . | . . . Slashing . | . . . Piercing . | . . . Sneak Attacks . | . . . Combat Hostiles . | . . . Follow-up Attacks . | . . . Damage Inflicted 359 | 48 184 127 Guns 359 | 48 184 127 Cannons . | . . . Explosions . | . . . Melee . | . . . Ramming . | . . . Kinetic . | . . . Thermal 359 | 48 184 127 Explosive . | . . . Electromagnetic . | . . . Impact . | . . . Slashing . | . . . Piercing . | . . . Highest Corruption . | . . . Average Corruption . | . . . Corruption Purged . | . . . Corruption Blocked . | . . . Overload Shots . | . . . Overflow Damage . | . . . Projectiles . | . . . Explosions . | . . . Melee . | . . . Knockbacks . | . . . Impact . | . . . Kinetic . | . . . Secondary . | . . . Self-Inflicted Damage . | . . . Shots . | . . . Rammed . | . . . Targets Rammed . | . . . Kicked . | . . . Crushed . | . . . Highest Temperature 171 | 30 96 171 Average Temperature 51 | 17 42 83 Received Heat Transfer 51 | . . 51 Siege Activations . | . . . Martial Activations . | . . . Shielding Activations . | . . . Robots Disrupted . | . . . Combat Hostiles . | . . . Robots Corrupted . | . . . Combat Hostiles . | . . . Parts Fried . | . . . Impact Corruptions . | . . . Robots Melted . | . . . Combat Hostiles . | . . . Parts Melted 2 | . 1 1 Heat Transferred 1173 | 112 691 370 Parts Sabotaged . | . . . Parts Stolen . | . . . Parts Stripped . | . . . Power Chain Reactions . | . . . Alert | -11 -10 -10 ------- Run | Yrd Mat Min Maximum Alert Level . | . . . Low Security (%) 100 | 100 100 100 Level 1 . | . . . Level 2 . | . . . Level 3 . | . . . Level 4 . | . . . Level 5 . | . . . High Security . | . . . Max Security . | . . . Peak Influence 100 | 15 100 80 Initial 34 | . 3 34 Average 25 | 2 26 27 Influence Increases 397 | 15 162 220 Destroy 0b10 Robot/C 100 | . 60 40 Destroy 0b10 Robot/NC 25 | 15 10 . Destroy Leader 24 | . 14 10 Trap Triggered on 0b10 20 | . . 20 Successful Hack 18 | . 18 . Lose Combat Pursuer 210 | . 60 150 Influence Decreases 270 | 10 76 184 Time Decay 230 | 10 76 144 Lost Part 40 | . . 40 Squads Dispatched . | . . . Investigation . | . . . Extermination . | . . . Reinforcement . | . . . Assault . | . . . Garrison . | . . . Intercept . | . . . Searches Triggered . | . . . Construction Impeded . | . . . Haulers Reinforced . | . . . Active Scanning Responses . | . . . Cargo Convoy Interrupts . | . . . Stealth | -11 -10 -10 --------- Run | Yrd Mat Min Distress Signals 1 | . 1 . Communications Jammed . | . . . Distress Signals . | . . . Times Spotted 27 | . 9 18 Peak Tracking Total 13 | . 4 13 Tactical Retreats 7 | . 2 5 Traps | -11 -10 -10 ------- Run | Yrd Mat Min Traps Triggered . | . . . Indirectly . | . . . Trap Hack Attempts . | . . . Triggered . | . . . Disarmed . | . . . Reprogrammed . | . . . Reused 3 | . . 3 Traps Extracted . | . . . Installed 3 | . . 3 Triggered 2 | . . 2 Most Traps Carried 2 | . . 2 Machines | -11 -10 -10 ---------- Run | Yrd Mat Min Machines Disabled 1 | . 1 . Max in Single Turn 1 | . 1 . Machines Repaired . | . . . Machines Dismantled . | . . . Machines Sabotaged . | . . . Overloaded Fab Kills . | . . . Hacking | -11 -10 -10 --------- Run | Yrd Mat Min Machines Accessed 4 | . 4 . Terminals 4 | . 4 . Fabricators . | . . . Repair Stations . | . . . Recycling Units . | . . . Scanalyzers . | . . . Garrison Access . | . . . Total Hacks 14 | . 14 . Successful 7 | . 7 . Failed 7 | . 7 . Catastrophic . | . . . Database Lockouts . | . . . Manual 12 | . 12 . Terminals 14 | . 14 . Fabricators . | . . . Repair Stations . | . . . Recycling Units . | . . . Scanalyzers . | . . . Garrison Access . | . . . Terminal Hacks 4 | . 4 . Robot Analysis 3 | . 3 . Locate Traps 1 | . 1 . Fabricator Hacks . | . . . Repair Station Hacks . | . . . Recycling Unit Hacks . | . . . Scanalyzer . | . . . Garrison Access Hacks . | . . . Unauthorized Hacks 3 | . 3 . Terminals 3 | . 3 . Assimilate 1 | . 1 . Botnet 2 | . 2 . Fabricators . | . . . Repair Stations . | . . . Recycling Units . | . . . Scanalyzers . | . . . Garrison Access . | . . . Data Cores Recovered . | . . . Used . | . . . Hacking Detections 4 | . 4 . Full Trace Events 1 | . 1 . Feedback Events . | . . . Feedback Blocked . | . . . Robot Schematics Acquired . | . . . Robots Built . | . . . Authchips . | . . . Time . | . . . Total Robot Build Rating . | . . . Part Schematics Acquired . | . . . Parts Built . | . . . Authchips . | . . . Time . | . . . Total Part Build Rating . | . . . Parts Repaired . | . . . Time . | . . . Parts Recycled . | . . . Recycled Matter . | . . . Retrieved Matter . | . . . Retrieved Components . | . . . Parts Scanalyzed . | . . . Part Schematics Acquired . | . . . Parts Damaged . | . . . Bothacking | -11 -10 -10 ------------ Run | Yrd Mat Min Used RIF Installer . | . . . Robots Hacked . | . . . Non-combat . | . . . Combat . | . . . Robot Hacks Applied . | . . . Relay Couplers Released . | . . . Fabnet Peak Effective % . | . . . Robots Rewired . | . . . Allies Hacked . | . . . Hacks Repelled . | . . . Allies | -11 -10 -10 -------- Run | Yrd Mat Min Total Allies . | . . . Largest Group . | . . . Highest-Rated Group . | . . . Highest-Rated Ally . | . . . Total Orders . | . . . Ally Attacks . | . . . Total Damage . | . . . Kills . | . . . Allies Corrupted . | . . . Allies Melted . | . . . Intel | -11 -10 -10 ------- Run | Yrd Mat Min Active Infowar (turns) 678 | 11 409 258 Sensors 96 | . . 96 Terrain 557 | 11 409 137 Seismic 25 | . . 25 Robot Analysis Total 3 | . 3 . Derelict Logs Recovered 2 | . . 2 Drone Launches . | . . . Drone Recoveries . | . . . Exploration | -11 -10 -10 ------------- Run | Yrd Mat Min Turns Passed 835 | 66 409 360 Spaces Moved 901 | 47 452 402 Core 153 | 12 . 141 Treads . | . . . Legs . | . . . Wheels 748 | 35 452 261 Hover . | . . . Flight . | . . . Fastest Speed 50 | 50 80 50 Average Speed 77 | 78 80 74 Slowest Speed 100 | 100 95 100 Overloaded Moves . | . . . Propulsion Burnouts . | . . . Robots Hopped . | . . . Cave-ins Triggered . | . . . Exploration Rate (%) 38 | 4 74 37 Regions Visited 2 Branch Regions 1 Pre-discovered Areas 2 | . . 2 Known Exits Taken . | . . . Unknown Exits Taken 2 | 1 1 . Scrap Searched . | . . . Spaces Dug . | . . . Terrain Destroyed . | . . . Melee . | . . . Projectile . | . . . AOE . | . . . Terrain Rammed . | . . . Walls Destroyed . | . . . Machines Disabled . | . . . Actions | -11 -10 -10 --------- Run | Yrd Mat Min Total 990 | 67 475 448 Wait 18 | . 3 15 Move 899 | 46 451 402 Hop . | . . . Pick Up 17 | 10 2 5 Fast Attach 8 | 4 1 3 Attach 7 | 3 . 4 Detach 1 | . 1 . Swap 8 | 1 2 5 Drop 8 | . 3 5 Fire 21 | 3 12 6 Melee . | . . . Ram . | . . . Kick . | . . . Crush . | . . . Escape Stasis . | . . . Rewire . | . . . Trap 3 | . . 3 Miscellaneous . | . . . Route ------- -11/Scrapyard -10/Materials (discovered 3 exits: [*Mat x2] / [*Min]) -10/Mines History --------- Turn | Location | Event 7 | -11/Scrapyard | Discovered new exit (range 15) 67 | -11/Scrapyard | Entered Materials 190 | -10/Materials | Discovered new exit (range 10) 254 | -10/Materials | Discovered new exit (range 11) 290 | -10/Materials | Discovered new exit (range 10) 317 | -10/Materials | Build established: Mutant 476 | -10/Materials | Entered Mines 528 | -10/Mines | Found a hidden stash of uninstalled traps 550 | -10/Mines | Learned location of Zion (-7) 626 | -10/Mines | Assembled infested the area 647 | -10/Mines | Core integrity fell below 50% 676 | -10/Mines | Lost 7 parts (1p3n1u2w) 760 | -10/Mines | Core integrity fell below 20% 760 | -10/Mines | Released all parts (5) 836 | -10/Mines | Destroyed by as-56011 with Assembled Rifle Last Messages --------------- 00649_ The unstable cave ceiling collapses. 00654_ Acquired Com. Wheel. 00664_ Acquired Sensor Array. 00667_ Acquired 3 matter. 00668_ Acquired 22 matter. 00698_ Acquired Proton Bomb Trap. 00713_ Dropped Proton Bomb Trap. 00713_ Installed Proton Bomb Trap. 00719_ Dropped Proton Bomb Trap. 00720_ Installed Proton Bomb Trap. 00722_ Dropped Proton Bomb Trap. 00722_ Installed Proton Bomb Trap. 00747_ Acquired Lgt. Ion Engine. 00759_ Com. Wheel destroyed. 00760_ Released Grenade Launcher. 00760_ Released Lgt. Assault Rifle. 00760_ Released Sensor Array. 00760_ Released Sml. Storage Unit. 00760_ Released Lgt. Ion Engine. 00762_ The unstable cave ceiling collapses. Map ----- +----------------------------------------------------+ | | | | | | | ????????????????#????????????????????? | | ????????????#???????#???????##???####? | | ???????#??????????????????## ### ## | | ?????#######??????????????# # | | ????## #?????????????## #? | | ##### *[ #?????#??????## #?? | | # ##???????????## """ #??? | | # ! ! ##?????######?# """ #???? | | # ! ! ##??????# #?# """ #????? | | # !! ##?#####?# #??# ##???? | | # !!! #?## ### ##### #?#?? | | # #?# ## # #???? | | ##### #### ## #???? | | ????# ## ### ##?#?? | | ????#### ## #### # # ####????? | | ???????# # #??###### # #???????? | | ???????# #???????# # #??#????? | | ??????# ##???????# ## # #???????? | | ??????# ##??????#?# ### ###????#??? | | ??????## ##?????????# #?# #??#??????? | | ???????####?########## #?# #?????????? | | ????????????# #?# #?????????? | | ????????#???#@##########?# #?????????? | | ??????####??# #??????????# #?????????? | | ??????## ### ##?#####???# #?????????? | | ?????## ##?## ##??# #?????????? | | ???### ### #??# #?????????? | | ???# #??# #?????????? | | ???## ### ##?# #?????????# | | ????###???## ### ##########? | | ???????????# a ## #? | | ??????????## a ######^ #? | | ??????????#%| ##??### ########## #? | | ????????? *! #???# #????#?# #? | | ???????# #???# #??????# #? | | ???????# ## ##??## [ #???#### %## | | ???????###?####?#?# !]* ###### #? | | ??????????????????# ! ## #? | | ????????? ????????# ! ##? | | ??????????????????## ####?? | | ???????????????????## ##????? | | ????????????????????## ##?????? | | ???????#????????####### ##??????? | | ???????# ??????## # #???????? | | ???????# ?########### # ###??????? | | ???????# ## # # %= #???????? | | ??????##%# # ### * #???????? | +----------------------------------------------------+ Best States ------------- Heat Dissipation 25 Energy Generation 10 Energy Capacity 125 Matter Stores 300 Matter Capacity 300 Sight Range 16 Robot Scan Range 14 Terrain Scan Range 16 Terrain Scan Density 10 Evasion (%) 50 Recoil Reduction 1 Item Schematics ----------------- None Robot Schematics ------------------ None Fabricated ------------ Nothing Repaired ---------- Nothing Alien Tech Used ----------------- None Achievements -------------- None Challenges ------------ None Game ------ Seed ZioniteNeutrinoRipper Manual? 0 Play Time 00:15:18 Cumulative 1099.8 hours Start 2024.11.17 @ 21:55:32 End 2024.11.17 @ 22:06:17 Sessions 1 Manual Loads 0 Difficulty Rogue Special Mode None Game No. 562 Rogue 435 Adventurer 125 Explorer 2 Win Type - Total 131 Types 101/10/9/3/3/0/0/3/2 Lore% 63 Gallery% 84 Achievement% 84 Wizard Run 0 Options --------- Layout 0 ASCII 0 Keyboard 1 Movement Numpad Keybinds 0 Fullscreen 1 Font 36/Terminus++ Map View 76x50 Zoom Use 0% Tactical HUD 1 Map Filters NONE Filters NONE Steam 1 RUN: f3c4384c-e9bb-4000-a944-478db7dbdcde